fUSD/lending_fUSD_20250105
["ID","MTS","AMOUNT","RATE_DAILY","PERIOD"]
[347679290,1736051275343,-500.0,0.00012049,2]
[347679291,1736051275365,-500.0,0.00012049,2]
[347679292,1736051275388,-573.3360591,0.00012049,2]
[347679293,1736051275412,-500.0,0.00012049,2]
[347679294,1736051275434,-500.0,0.00012049,2]
[347679295,1736051275456,-500.0,0.00012049,2]
[347679296,1736051275480,-500.0,0.00012049,2]
[347679297,1736051275503,-526.41226494,0.00012049,2]
[347679298,1736051275527,-500.0,0.00012049,2]
[347679299,1736051275550,-500.0,0.00012049,2]
[347679300,1736051275573,-500.0,0.00012049,2]
[347679301,1736051275597,-500.0,0.00012049,2]
[347679302,1736051275619,-475.0662049,0.00012049,2]
[347679303,1736051275642,-500.0,0.00012049,2]
[347679304,1736051275665,-1820.58,0.00012049,2]
[347679305,1736051275688,-562.23,0.00012049,2]
[347679306,1736051275712,-2054.34,0.00012049,2]
[347679307,1736051275736,-1370.28,0.00012049,2]
[347679308,1736051275759,-500.0,0.00012049,2]
[347679309,1736051275781,-1120.71,0.00012049,2]
[347679310,1736051275804,-500.0,0.00012049,2]
[347679311,1736051275828,-606.96,0.00012049,2]
[347679312,1736051275852,-1347.54,0.00012049,2]
[347679313,1736051275875,-360.53467264,0.00012049,2]
[347679314,1736051275897,-754.61,0.00012049,2]
[347679315,1736051275920,-500.0,0.00012049,2]
[347679316,1736051275944,-528.74,0.00012049,2]
[347679317,1736051275967,-1238.95,0.00012049,2]
[347679318,1736051275990,-547.29,0.00012049,2]
[347679319,1736051276012,-1747.09310426,0.0001205,2]
[347679320,1736051276037,-1780545.29574325,0.0001205,2]
[347679321,1736051276060,-208452.0,0.0001205,2]
[347679322,1736051276084,-17048084.87,0.0001205,2]
[347679323,1736051276107,-202.0,0.0001205,2]
[347679324,1736051276129,-202.0,0.0001205,2]
[347679325,1736051276151,-202.0,0.0001205,2]
[347679326,1736051276174,-205.0,0.0001205,2]
[347679327,1736051276197,-202.0,0.0001205,2]
[347679328,1736051276220,-205.0,0.0001205,2]
[347679329,1736051276249,-202.0,0.0001205,2]
[347679330,1736051276276,-202.0,0.0001205,2]
[347679331,1736051276303,-202.0,0.0001205,2]
[347679332,1736051276339,-205.0,0.0001205,2]
[347679333,1736051276374,-205.0,0.0001205,2]
[347679334,1736051276401,-205.0,0.0001205,2]
[347679335,1736051276428,-205.0,0.0001205,2]
[347679336,1736051276453,-205.0,0.0001205,2]
[347679337,1736051276477,-205.0,0.0001205,2]
[347679338,1736051276504,-205.0,0.0001205,2]
[347679339,1736051276530,-205.0,0.0001205,2]
[347679340,1736051276562,-205.0,0.0001205,2]
[347679341,1736051276589,-205.0,0.0001205,2]
[347679342,1736051276762,-205.0,0.0001205,2]
[347679343,1736051276786,-205.0,0.0001205,2]
[347679344,1736051276817,-203.0,0.0001205,2]
[347679345,1736051276841,-203.0,0.0001205,2]
[347679346,1736051276865,-203.0,0.0001205,2]
[347679347,1736051276887,-203.0,0.0001205,2]
[347679348,1736051276911,-203.0,0.0001205,2]
[347679349,1736051276934,-203.0,0.0001205,2]
[347679350,1736051276957,-203.0,0.0001205,2]
[347679351,1736051276980,-202.0,0.0001205,2]
[347679352,1736051277003,-202.0,0.0001205,2]
[347679353,1736051277025,-202.0,0.0001205,2]
[347679354,1736051277048,-202.0,0.0001205,2]
[347679355,1736051277076,-202.0,0.0001205,2]
[347679356,1736051277099,-202.0,0.0001205,2]
[347679357,1736051277123,-202.0,0.0001205,2]
[347679358,1736051277147,-150.0,0.0001205,2]
[347679359,1736051277170,-150.0,0.0001205,2]
[347679360,1736051277193,-150.0,0.0001205,2]
[347679361,1736051277216,-150.0,0.0001205,2]
[347679362,1736051277245,-88815.04757186,0.0001205,2]
[347679363,1736051277266,-12444.69749073,0.0001205,2]
[347679364,1736051277289,-556.20123121,0.0001205,2]
[347679365,1736051277314,-6011.71884505,0.0001205,2]
[347679366,1736051277337,-493.864676,0.0001205,2]
[347679367,1736051277364,-493.864676,0.0001205,2]
[347679368,1736051277387,-493.864676,0.0001205,2]
[347679369,1736051277411,-493.864676,0.0001205,2]
[347679370,1736051277435,-151.0,0.0001205,2]
[347679371,1736051277459,-151.0,0.0001205,2]
[347679372,1736051277483,-150.0,0.0001205,2]
[347679373,1736051277505,-8827.45030783,0.0001205,2]
[347679374,1736051277529,-500.0,0.0001205,2]
[347679375,1736051277554,-500.0,0.0001205,2]
[347679376,1736051277579,-549.55280108,0.0001205,2]
[347679377,1736051277605,-237.92,0.0001205,2]
[347679378,1736051277630,-237.92,0.0001205,2]
[347679379,1736051277653,-237.92,0.0001205,2]
[347679380,1736051277676,-237.92,0.0001205,2]
[347679381,1736051277698,-237.92,0.0001205,2]
[347679382,1736051277722,-237.92,0.0001205,2]
[347679383,1736051277746,-500.0,0.0001205,2]
[347679384,1736051277771,-841.26,0.0001205,2]
[347679385,1736051277794,-841.26,0.0001205,2]
[347679386,1736051277820,-1153.38,0.0001205,2]
[347679387,1736051277843,-520.24,0.0001205,2]
[347679388,1736051277867,-760.0,0.0001205,2]
[347679389,1736051277890,-500.0,0.0001205,2]
[347679390,1736051277913,-788.82,0.0001205,2]
[347679391,1736051277936,-500.0,0.0001205,2]
[347679392,1736051277960,-500.0,0.0001205,2]
[347679393,1736051277983,-349.33,0.0001205,2]
[347679394,1736051278006,-500.0,0.0001205,2]
[347679395,1736051278032,-1540.896891,0.0001205,2]
[347679396,1736051278056,-1540.896891,0.0001205,2]
[347679397,1736051278079,-500.0,0.0001205,2]
[347679398,1736051278103,-156.453335,0.0001205,2]
[347679399,1736051278126,-500.0,0.0001205,2]
[347679400,1736051278149,-156.573944,0.0001205,2]
[347679401,1736051278172,-500.0,0.0001205,2]
[347679402,1736051278195,-499.45,0.0001205,2]
[347679403,1736051278219,-609.91,0.0001205,2]
[347679404,1736051278246,-1863.827328,0.0001205,2]
[347679405,1736051278269,-1863.827328,0.0001205,2]
[347679406,1736051278297,-1500.71,0.0001205,2]
[347679407,1736051278322,-500.0,0.0001205,2]
[347679408,1736051278345,-500.0,0.0001205,2]
[347679409,1736051278368,-500.0,0.0001205,2]
[347679410,1736051278391,-500.0,0.0001205,2]
[347679411,1736051278413,-500.0,0.0001205,2]
[347679412,1736051278436,-500.0,0.0001205,2]
[347679413,1736051278460,-500.0,0.0001205,2]
[347679414,1736051278484,-2093.2,0.0001205,2]
[347679415,1736051278508,-184.17,0.0001205,2]
[347679416,1736051278531,-500.0,0.0001205,2]
[347679417,1736051278557,-500.0,0.0001205,2]
[347679418,1736051278580,-1060.83,0.0001205,2]
[347679419,1736051278604,-500.0,0.0001205,2]
[347679420,1736051278627,-1546.57,0.0001205,2]
[347679421,1736051278650,-922.36,0.0001205,2]
[347679422,1736051278674,-500.0,0.0001205,2]
[347679423,1736051278698,-5149.62,0.0001205,2]
[347679424,1736051278722,-500.0,0.0001205,2]
[347679425,1736051278747,-500.0,0.0001205,2]
[347679426,1736051278770,-708.54,0.0001205,2]
[347679427,1736051278794,-500.0,0.0001205,2]
[347679428,1736051278819,-500.0,0.0001205,2]
[347679429,1736051278843,-500.0,0.0001205,2]
[347679430,1736051278867,-500.0,0.0001205,2]
[347679431,1736051278890,-500.0,0.0001205,2]
[347679432,1736051278914,-500.0,0.0001205,2]
[347679433,1736051278938,-500.0,0.0001205,2]
[347679434,1736051278962,-500.0,0.0001205,2]
[347679435,1736051278985,-500.0,0.0001205,2]
[347679436,1736051279009,-600.84,0.0001205,2]
[347679437,1736051279033,-1567.43,0.0001205,2]
[347679438,1736051279058,-500.0,0.0001205,2]
[347679439,1736051279082,-500.0,0.0001205,2]
[347679440,1736051279105,-1272.72,0.0001205,2]
[347679441,1736051279128,-500.0,0.0001205,2]
[347679442,1736051279151,-500.0,0.0001205,2]
[347679443,1736051279176,-988.39,0.0001205,2]
[347679444,1736051279199,-367.89,0.0001205,2]
[347679445,1736051279221,-500.0,0.0001205,2]
[347679446,1736051279248,-1172.45,0.0001205,2]
[347679447,1736051279270,-196.2626965,0.0001205,2]
[347679448,1736051279438,-578.19,0.0001205,2]
[347679449,1736051279462,-500.0,0.0001205,2]
[347679450,1736051279486,-890.96,0.0001205,2]
[347679451,1736051279510,-500.0,0.0001205,2]
[347679452,1736051279534,-917.41,0.0001205,2]
[347679453,1736051279559,-552.04,0.0001205,2]
[347679454,1736051279582,-1563.18,0.0001205,2]
[347679455,1736051279606,-1836.54,0.00012051,2]
[347679456,1736051279630,-500.0,0.00012051,2]
[347679457,1736051279653,-506.89,0.00012051,2]
[347679458,1736051279678,-1292.16,0.00012051,2]
[347679459,1736051279702,-500.0,0.00012051,2]
[347679460,1736051279726,-500.0,0.00012051,2]
[347679461,1736051279750,-500.0,0.00012051,2]
[347679462,1736051279780,-218.91759395,0.00012051,2]
[347679463,1736051279803,-567.18,0.00012051,2]
[347679464,1736051279829,-500.0,0.00012051,2]
[347679465,1736051279853,-500.0,0.00012051,2]
[347679466,1736051279877,-533.84,0.00012051,2]
[347679467,1736051279900,-742.63,0.00012051,2]
[347679468,1736051279924,-500.0,0.00012051,2]
[347679469,1736051279948,-500.0,0.00012051,2]
[347679470,1736051279974,-869.58,0.00012051,2]
[347679471,1736051279997,-500.0,0.00012051,2]
[347679472,1736051280022,-470.11383919,0.00012051,2]
[347679473,1736051280046,-500.0,0.00012051,2]
[347679474,1736051280071,-500.0,0.00012051,2]
[347679475,1736051280095,-1069.16,0.00012051,2]
[347679476,1736051280119,-742.45,0.00012051,2]
[347679477,1736051280145,-607.13,0.00012051,2]
[347679478,1736051280168,-500.0,0.00012051,2]
[347679479,1736051280191,-1000.0,0.00012071,2]
[347679480,1736051280214,-1000.0,0.00012071,2]
[347679481,1736051280240,-1000.0,0.00012071,2]
[347679482,1736051280263,-1000.0,0.00012071,2]
[347679483,1736051280285,-1000.0,0.00012071,2]
[347679484,1736051280309,-1000.0,0.00012071,2]
[347679485,1736051280332,-1000.0,0.00012071,2]
[347679486,1736051280355,-1000.0,0.00012071,2]
[347679487,1736051280378,-1000.0,0.00012071,2]
[347679488,1736051280401,-1000.0,0.00012071,2]
[347679489,1736051280425,-200.0,0.00012119,2]
[347679490,1736051280448,-500.0,0.00012186,2]
[347679491,1736051280472,-150.0,0.00012237,2]
[347679492,1736051280498,-200.0,0.0001224,2]
[347679493,1736051280526,-150.0,0.00012255,2]
[347679494,1736051280553,-150.0,0.00012261,2]
[347679495,1736051280579,-68011.91161822,0.00012277,2]
[347679496,1736051280604,-237.92,0.00012277,2]
[347679497,1736051280629,-237.92,0.00012277,2]
[347679498,1736051280654,-413731.0973043,0.0001229,4]
[347679499,1736051280679,-200.31667702,0.00012292,2]
[347679500,1736051280705,-150.0,0.00012292,2]
[347679501,1736051280731,-200.56076844,0.00012292,2]
[347679502,1736051280757,-500.0,0.00012292,2]
[347679503,1736051280782,-150.0,0.00012292,2]
[347679504,1736051280807,-150.0,0.00012292,2]
[347679505,1736051280832,-150.0,0.00012292,2]
[347679506,1736051280858,-150.0,0.00012292,2]
[347679507,1736051280884,-2342.0,0.00012292,2]
[347679508,1736051280910,-4015311.64113705,0.000123,2]
[347679509,1736051280935,-3000.0,0.000123,2]
[347679510,1736051280963,-12899688.79549061,0.000123,2]
[347679518,1736051431989,-205.0,9.8e-05,2]
[347679519,1736051431999,-185.003813,9.96e-05,2]
[347679520,1736051432010,-1487.48,0.00010031,2]
[347679521,1736051432020,-500.0,0.00010032,2]
[347679522,1736051432030,-500.0,0.00010032,2]
[347679523,1736051432041,-500.0,0.00010032,2]
[347679524,1736051432051,-500.0,0.00010032,2]
[347679525,1736051432061,-500.0,0.00010032,2]
[347679526,1736051432072,-500.0,0.00010032,2]
[347679527,1736051432082,-1473.55,0.00010063,2]
[347679528,1736051432092,-500.0,0.00010133,2]
[347679529,1736051432103,-500.0,0.00010133,2]
[347679530,1736051432113,-1882.01,0.00010133,2]
[347679531,1736051432122,-500.0,0.00010133,2]
[347679532,1736051432132,-500.0,0.00010133,2]
[347679533,1736051432142,-500.0,0.00010133,2]
[347679534,1736051432151,-1029.52746865,0.00010231,2]
[347679535,1736051432173,-476.18253135,0.00010231,2]
[347679536,1736051432184,-500.0,0.00010306,2]
[347679537,1736051432194,-500.0,0.00010306,2]
[347679538,1736051432203,-500.0,0.00010306,2]
[347679539,1736051432213,-500.0,0.00010306,2]
[347679540,1736051432223,-500.0,0.00010306,2]
[347679541,1736051432232,-500.0,0.00010306,2]
[347679542,1736051432242,-1480.76,0.00010332,2]
[347679543,1736051432251,-69.97832352,0.00010376,2]
[347679544,1736051432268,-180.02167648,0.00010376,2]
[347679545,1736051432279,-270.63132352,0.00010405,2]
[347679546,1736051432291,-229.36867648,0.00010405,2]
[347679547,1736051432302,-959.99832752,0.00010405,2]
[347679548,1736051432320,-577.87167248,0.00010405,2]
[347679549,1736051432330,-500.0,0.00010405,2]
[347679550,1736051432340,-1535.71,0.00010405,2]
[347679551,1736051432350,-500.0,0.00010405,2]
[347679552,1736051432359,-281.19824175,0.00010405,2]
[347679553,1736051432370,-818.6,0.00010405,2]
[347679554,1736051432379,-837.33,0.00010405,2]
[347679555,1736051432389,-500.0,0.00010405,2]
[347679556,1736051432398,-993.29,0.00010405,2]
[347679557,1736051432408,-500.0,0.00010406,2]
[347679558,1736051432418,-500.0,0.00010406,2]
[347679559,1736051432427,-500.0,0.00010406,2]
[347679560,1736051432437,-613.09,0.00010406,2]
[347679561,1736051432447,-500.0,0.00010406,2]
[347679562,1736051432457,-567.27,0.00010406,2]
[347679563,1736051432466,-179.293344,0.00010406,2]
[347679564,1736051432475,-500.0,0.00010406,2]
[347679565,1736051432485,-500.0,0.00010406,2]
[347679566,1736051432494,-1213.85,0.00010406,2]
[347679568,1736051432504,-167.204655,0.00010406,2]
[347679570,1736051432514,-633.3,0.00010406,2]
[347679573,1736051432524,-500.0,0.00010406,2]
[347679575,1736051432533,-1206.88,0.00010406,2]
[347679577,1736051432543,-246.68999748,0.00010406,2]
[347679579,1736051432552,-500.0,0.00010406,2]
[347679580,1736051432562,-500.0,0.00010406,2]
[347679582,1736051432572,-1043.4,0.00010406,2]
[347679585,1736051432581,-500.0,0.00010406,2]
[347679587,1736051432591,-567.3,0.00010406,2]
[347679589,1736051432601,-500.0,0.00010406,2]
[347679590,1736051432610,-500.0,0.00010406,2]
[347679592,1736051432620,-500.0,0.00010406,2]
[347679594,1736051432629,-500.0,0.00010406,2]
[347679595,1736051432639,-500.0,0.00010406,2]
[347679596,1736051432648,-2223.76,0.00010406,2]
[347679597,1736051432658,-607.08,0.00010406,2]
[347679599,1736051432667,-500.0,0.00010406,2]
[347679601,1736051432677,-1479.07,0.00010406,2]
[347679603,1736051432686,-500.0,0.00010407,2]
[347679605,1736051432696,-500.0,0.00010407,2]
[347679607,1736051432706,-500.0,0.00010407,2]
[347679609,1736051432716,-500.0,0.00010407,2]
[347679611,1736051432725,-1882.01,0.00010407,2]
[347679613,1736051432735,-500.0,0.00010407,2]
[347679615,1736051432744,-500.0,0.00010407,2]
[347679617,1736051432753,-500.0,0.00010407,2]
[347679619,1736051432763,-500.0,0.00010407,2]
[347679621,1736051432772,-500.0,0.00010407,2]
[347679623,1736051432782,-500.0,0.00010407,2]
[347679625,1736051432791,-500.0,0.00010407,2]
[347679627,1736051432801,-500.0,0.00010407,2]
[347679629,1736051432810,-500.0,0.00010407,2]
[347679631,1736051432819,-500.0,0.00010407,2]
[347679633,1736051432829,-7388.43888594,0.00010562,4]
[347679635,1736051432838,-500.0,0.0001058,2]
[347679638,1736051432849,-500.0,0.0001058,2]
[347679640,1736051432858,-500.0,0.0001058,2]
[347679641,1736051432866,-500.0,0.0001058,2]
[347679643,1736051432875,-500.0,0.0001058,2]
[347679646,1736051432885,-500.0,0.00010679,2]
[347679647,1736051432895,-1537.87,0.00010679,2]
[347679649,1736051432904,-500.0,0.00010679,2]
[347679651,1736051432914,-1535.71,0.00010679,2]
[347679653,1736051432923,-500.0,0.00010679,2]
[347679656,1736051432932,-818.6,0.00010679,2]
[347679657,1736051432942,-837.33,0.00010679,2]
[347679659,1736051432952,-500.0,0.00010679,2]
[347679661,1736051432962,-993.29,0.00010679,2]
[347679663,1736051432971,-1492.23,0.0001068,2]
[347679666,1736051432981,-500.0,0.0001068,2]
[347679667,1736051432990,-500.0,0.0001068,2]
[347679670,1736051432999,-500.0,0.0001068,2]
[347679672,1736051433009,-613.09,0.0001068,2]
[347679673,1736051433017,-500.0,0.0001068,2]
[347679675,1736051433026,-567.27,0.0001068,2]
[347679677,1736051433036,-500.0,0.0001068,2]
[347679679,1736051433045,-500.0,0.0001068,2]
[347679681,1736051433055,-1213.85,0.0001068,2]
[347679683,1736051433064,-633.3,0.0001068,2]
[347679685,1736051433073,-500.0,0.0001068,2]
[347679687,1736051433083,-1206.88,0.0001068,2]
[347679689,1736051433093,-500.0,0.0001068,2]
[347679691,1736051433102,-500.0,0.0001068,2]
[347679693,1736051433113,-1043.4,0.0001068,2]
[347679695,1736051433122,-567.3,0.0001068,2]
[347679697,1736051433131,-500.0,0.0001068,2]
[347679699,1736051433140,-500.0,0.0001068,2]
[347679701,1736051433149,-500.0,0.0001068,2]
[347679703,1736051433160,-500.0,0.0001068,2]
[347679705,1736051433170,-500.0,0.0001068,2]
[347679707,1736051433179,-2223.76,0.0001068,2]
[347679710,1736051433189,-607.08,0.0001068,2]
[347679711,1736051433199,-500.0,0.0001068,2]
[347679713,1736051433208,-504.87376528,0.00010681,2]
[347679715,1736051433218,-500.0,0.00010681,2]
[347679718,1736051433228,-500.0,0.00010681,2]
[347679719,1736051433237,-500.0,0.00010681,2]
[347679722,1736051433246,-1882.01,0.00010681,2]
[347679724,1736051433257,-500.0,0.00010681,2]
[347679726,1736051433266,-500.0,0.00010681,2]
[347679728,1736051433276,-500.0,0.00010681,2]
[347679729,1736051433288,-500.0,0.00010681,2]
[347679732,1736051433299,-500.0,0.00010681,2]
[347679734,1736051433309,-500.0,0.00010681,2]
[347679735,1736051433318,-500.0,0.00010681,2]
[347679738,1736051433328,-500.0,0.00010681,2]
[347679740,1736051433338,-500.0,0.00010681,2]
[347679741,1736051433347,-500.0,0.00010854,2]
[347679743,1736051433357,-500.0,0.00010854,2]
[347679745,1736051433368,-500.0,0.00010854,2]
[347679747,1736051433377,-500.0,0.00010854,2]
[347679749,1736051433387,-500.0,0.00010854,2]
[347679751,1736051433396,-238.05672996,0.00010922,2]
[347679754,1736051433409,-802.8225675,0.00010922,2]
[347679756,1736051433418,-500.0,0.00010953,2]
[347679758,1736051433427,-1537.87,0.00010953,2]
[347679760,1736051433437,-500.0,0.00010953,2]
[347679761,1736051433448,-1535.71,0.00010953,2]
[347679764,1736051433457,-500.0,0.00010953,2]
[347679765,1736051433467,-818.6,0.00010953,2]
[347679768,1736051433476,-837.33,0.00010953,2]
[347679770,1736051433486,-214.40611393,0.00010953,2]
[347679772,1736051433495,-993.29,0.00010953,2]
[347679774,1736051433505,-500.0,0.00010954,2]
[347679776,1736051433515,-500.0,0.00010954,2]
[347679777,1736051433524,-500.0,0.00010954,2]
[347679779,1736051433533,-613.09,0.00010954,2]
[347679781,1736051433543,-500.0,0.00010954,2]
[347679783,1736051433552,-567.27,0.00010954,2]
[347679785,1736051433561,-500.0,0.00010954,2]
[347679787,1736051433571,-500.0,0.00010954,2]
[347679789,1736051433581,-1213.85,0.00010954,2]
[347679791,1736051433590,-500.0,0.00010954,2]
[347679793,1736051433599,-1206.88,0.00010954,2]
[347679795,1736051433609,-633.3,0.00010954,2]
[347679797,1736051433619,-500.0,0.00010954,2]
[347679800,1736051433628,-500.0,0.00010954,2]
[347679801,1736051433638,-1043.4,0.00010954,2]
[347679804,1736051433647,-567.3,0.00010954,2]
[347679806,1736051433662,-500.0,0.00010954,2]
[347679808,1736051433672,-500.0,0.00010954,2]
[347679810,1736051433682,-500.0,0.00010954,2]
[347679812,1736051433691,-500.0,0.00010954,2]
[347679814,1736051433701,-500.0,0.00010954,2]
[347679816,1736051433710,-2223.76,0.00010954,2]
[347679818,1736051433719,-607.08,0.00010954,2]
[347679820,1736051433729,-500.0,0.00010954,2]
[347679822,1736051433738,-500.0,0.00010955,2]
[347679824,1736051433749,-500.0,0.00010955,2]
[347679826,1736051433759,-500.0,0.00010955,2]
[347679828,1736051433768,-1882.01,0.00010955,2]
[347679830,1736051433778,-500.0,0.00010955,2]
[347679832,1736051433787,-500.0,0.00010955,2]
[347679834,1736051433797,-500.0,0.00010955,2]
[347679836,1736051433806,-500.0,0.00010955,2]
[347679838,1736051433816,-500.0,0.00010955,2]
[347679840,1736051433826,-500.0,0.00010955,2]
[347679842,1736051433835,-500.0,0.00010955,2]
[347679844,1736051433845,-500.0,0.00010955,2]
[347679846,1736051433854,-500.0,0.00010955,2]
[347679848,1736051433864,-500.0,0.00011128,2]
[347679850,1736051433874,-500.0,0.00011128,2]
[347679852,1736051433883,-500.0,0.00011128,2]
[347679854,1736051433893,-500.0,0.00011128,2]
[347679856,1736051433903,-500.0,0.00011128,2]
[347679858,1736051433912,-500.0,0.00011227,2]
[347679861,1736051433922,-1537.87,0.00011227,2]
[347679863,1736051433932,-500.0,0.00011227,2]
[347679865,1736051433941,-1535.71,0.00011227,2]
[347679867,1736051433951,-500.0,0.00011227,2]
[347679869,1736051433961,-818.6,0.00011227,2]
[347679870,1736051433970,-837.33,0.00011227,2]
[347679872,1736051433980,-993.29,0.00011227,2]
[347679875,1736051433990,-1511.07,0.00011227,2]
[347679877,1736051433999,-500.0,0.00011228,2]
[347679879,1736051434009,-500.0,0.00011228,2]
[347679881,1736051434018,-500.0,0.00011228,2]
[347679883,1736051434028,-613.09,0.00011228,2]
[347679885,1736051434037,-500.0,0.00011228,2]
[347679887,1736051434046,-179.293344,0.00011228,2]
[347679889,1736051434056,-567.27,0.00011228,2]
[347679890,1736051434065,-500.0,0.00011228,2]
[347679893,1736051434075,-500.0,0.00011228,2]
[347679895,1736051434084,-1213.85,0.00011228,2]
[347679897,1736051434093,-167.204655,0.00011228,2]
[347679899,1736051434103,-500.0,0.00011228,2]
[347679900,1736051434112,-1206.88,0.00011228,2]
[347679901,1736051434123,-633.3,0.00011228,2]
[347679902,1736051434133,-500.0,0.00011228,2]
[347679903,1736051434142,-500.0,0.00011228,2]
[347679904,1736051434151,-1043.4,0.00011228,2]
[347679905,1736051434161,-567.3,0.00011228,2]
[347679906,1736051434170,-500.0,0.00011228,2]
[347679907,1736051434180,-500.0,0.00011228,2]
[347679908,1736051434190,-500.0,0.00011228,2]
[347679909,1736051434200,-500.0,0.00011228,2]
[347679910,1736051434210,-500.0,0.00011228,2]
[347679911,1736051434220,-2223.76,0.00011228,2]
[347679912,1736051434229,-607.08,0.00011228,2]
[347679913,1736051434239,-500.0,0.00011229,2]
[347679914,1736051434249,-500.0,0.00011229,2]
[347679915,1736051434258,-500.0,0.00011229,2]
[347679917,1736051434268,-1882.01,0.00011229,2]
[347679919,1736051434281,-500.0,0.00011229,2]
[347679920,1736051434290,-500.0,0.00011229,2]
[347679922,1736051434300,-500.0,0.00011229,2]
[347679924,1736051434310,-500.0,0.00011229,2]
[347679926,1736051434319,-500.0,0.00011229,2]
[347679928,1736051434329,-500.0,0.00011229,2]
[347679931,1736051434339,-500.0,0.00011229,2]
[347679933,1736051434349,-692.11,0.00011229,2]
[347679935,1736051434359,-500.0,0.00011229,2]
[347679937,1736051434369,-500.0,0.00011229,2]
[347679938,1736051434379,-500.0,0.00011229,2]
[347679941,1736051434389,-500.0,0.00011229,2]
[347679942,1736051434399,-500.0,0.0001126,2]
[347679944,1736051434408,-500.0,0.0001126,2]
[347679947,1736051434418,-500.0,0.0001126,2]
[347679948,1736051434428,-500.0,0.0001126,2]
[347679951,1736051434438,-500.0,0.0001126,2]
[347679953,1736051434449,-500.0,0.0001126,2]
[347679955,1736051434458,-500.0,0.0001126,2]
[347679957,1736051434468,-500.0,0.0001126,2]
[347679959,1736051434478,-500.0,0.0001126,2]
[347679960,1736051434487,-500.0,0.0001126,2]
[347679962,1736051434496,-500.0,0.0001126,2]
[347679965,1736051434506,-500.0,0.0001126,2]
[347679966,1736051434516,-500.0,0.0001126,2]
[347679968,1736051434525,-500.0,0.0001126,2]
[347679970,1736051434535,-500.0,0.0001126,2]
[347679972,1736051434544,-500.0,0.0001126,2]
[347679975,1736051434554,-500.0,0.0001126,2]
[347679977,1736051434564,-500.0,0.0001126,2]
[347679978,1736051434574,-500.0,0.0001126,2]
[347679980,1736051434584,-515.00615924,0.0001126,2]
[347679982,1736051434594,-500.0,0.00011264,2]
[347679984,1736051434604,-500.0,0.00011264,2]
[347679987,1736051434614,-500.0,0.00011402,2]
[347679989,1736051434624,-500.0,0.00011402,2]
[347679990,1736051434633,-500.0,0.00011402,2]
[347679992,1736051434643,-428.34358655,0.00011402,2]
[347679995,1736051434657,-71.65641345,0.00011402,2]
[347679997,1736051434666,-500.0,0.00011402,2]
[347679999,1736051434675,-500.0,0.00011501,2]
[347680001,1736051434686,-1537.87,0.00011501,2]
[347680003,1736051434695,-500.0,0.00011501,2]
[347680005,1736051434707,-1535.71,0.00011501,2]
[347680007,1736051434717,-500.0,0.00011501,2]
[347680009,1736051434728,-818.6,0.00011501,2]